fUSD/lending_fUSD_20250217
["ID","MTS","AMOUNT","RATE_DAILY","PERIOD"]
[353382904,1739807482525,-2733.35226029,0.00014329,2]
[353382905,1739807482535,-202.0,0.0001433,2]
[353382906,1739807482544,-205.0,0.0001434,2]
[353382907,1739807482553,-209.0,0.0001434,2]
[353382908,1739807482563,-748.8809657,0.00014346,2]
[353382909,1739807482572,-500.0,0.00014355,2]
[353382910,1739807482583,-848.67,0.00014355,2]
[353382911,1739807482592,-848.67,0.00014355,2]
[353382912,1739807482601,-307.7043,0.00014356,2]
[353382913,1739807482611,-869.210235,0.00014356,2]
[353382914,1739807482619,-805.829032,0.00014356,2]
[353382915,1739807482628,-500.0,0.00014356,2]
[353382916,1739807482637,-500.0,0.00014356,2]
[353382917,1739807482647,-500.0,0.00014356,2]
[353382918,1739807482656,-583.65,0.00014356,2]
[353382919,1739807482665,-647.97017514,0.00014356,2]
[353382920,1739807482674,-500.0,0.00014356,2]
[353382921,1739807482683,-670.0,0.00014356,2]
[353382922,1739807482693,-500.0,0.00014356,2]
[353382923,1739807482702,-500.0,0.00014356,2]
[353382924,1739807482711,-500.0,0.00014356,2]
[353382925,1739807482721,-505.23,0.00014356,2]
[353382926,1739807482730,-582.08,0.00014356,2]
[353382927,1739807482740,-395.89277893,0.00014356,2]
[353382928,1739807482749,-188.63385056,0.00014356,2]
[353382929,1739807482758,-521.71,0.00014356,2]
[353382930,1739807482768,-500.0,0.00014356,2]
[353382931,1739807482777,-500.0,0.00014356,2]
[353382932,1739807482786,-500.0,0.00014356,2]
[353382933,1739807482795,-500.0,0.00014356,2]
[353382934,1739807482804,-500.0,0.00014356,2]
[353382935,1739807482813,-500.0,0.00014356,2]
[353382936,1739807482823,-500.0,0.00014356,2]
[353382937,1739807482832,-716.0,0.00014356,2]
[353382938,1739807482843,-724.35,0.00014356,2]
[353382939,1739807482853,-500.0,0.00014356,2]
[353382940,1739807482863,-505.21,0.00014356,2]
[353382941,1739807482871,-500.0,0.00014356,2]
[353382942,1739807482881,-500.0,0.00014356,2]
[353382943,1739807482890,-500.0,0.00014356,2]
[353382944,1739807482899,-886.78,0.00014356,2]
[353382945,1739807482908,-739.86,0.00014356,2]
[353382946,1739807482917,-500.0,0.00014356,2]
[353382947,1739807482927,-500.0,0.00014356,2]
[353382948,1739807482937,-545.59,0.00014356,2]
[353382949,1739807482946,-777.74,0.00014356,2]
[353382950,1739807482956,-593.26325435,0.00014356,2]
[353382951,1739807482965,-500.0,0.00014356,2]
[353382952,1739807482975,-916.92,0.00014356,2]
[353382953,1739807482983,-570.5,0.00014356,2]
[353382954,1739807482993,-1159.55,0.00014356,2]
[353382955,1739807483004,-500.0,0.00014356,2]
[353382956,1739807483013,-601.32,0.00014356,2]
[353382957,1739807483023,-587.92,0.00014356,2]
[353382958,1739807483032,-534.04,0.00014356,2]
[353382959,1739807483042,-599.83,0.00014356,2]
[353382960,1739807483052,-661.0,0.00014356,2]
[353382961,1739807483070,-533.51,0.00014356,2]
[353382962,1739807483081,-811.77,0.00014356,2]
[353382963,1739807483091,-576.06,0.00014356,2]
[353382964,1739807483100,-593.38,0.00014356,2]
[353382965,1739807483109,-630.76,0.00014356,2]
[353382966,1739807483119,-714.58,0.00014356,2]
[353382967,1739807483129,-942.74,0.00014356,2]
[353382968,1739807483139,-500.0,0.00014356,2]
[353382969,1739807483148,-932.03,0.00014356,2]
[353382970,1739807483157,-851.93,0.00014356,2]
[353382971,1739807483166,-697.57,0.00014356,2]
[353382972,1739807483176,-500.0,0.00014356,2]
[353382973,1739807483185,-500.0,0.00014356,2]
[353382974,1739807483194,-500.0,0.00014356,2]
[353382975,1739807483203,-558.17,0.00014356,2]
[353382976,1739807483213,-901.05,0.00014356,2]
[353382977,1739807483222,-501.89,0.00014356,2]
[353382978,1739807483232,-958.61,0.00014356,2]
[353382979,1739807483242,-500.0,0.00014356,2]
[353382980,1739807483252,-651.14,0.00014356,2]
[353382981,1739807483262,-715.24,0.00014356,2]
[353382982,1739807483272,-578.19,0.00014356,2]
[353382983,1739807483281,-533.54,0.00014356,2]
[353382984,1739807483292,-500.0,0.00014356,2]
[353382985,1739807483302,-500.0,0.00014356,2]
[353382986,1739807483312,-500.0,0.00014356,2]
[353382987,1739807483322,-649.57,0.00014356,2]
[353382988,1739807483332,-500.0,0.00014356,2]
[353382989,1739807483342,-658.48,0.00014356,2]
[353382990,1739807483351,-876.0,0.00014356,2]
[353382991,1739807483362,-500.0,0.00014356,2]
[353382992,1739807483371,-500.0,0.00014356,2]
[353382993,1739807483383,-500.0,0.00014356,2]
[353382994,1739807483393,-1088.47,0.00014356,2]
[353382995,1739807483404,-720.55,0.00014356,2]
[353382996,1739807483413,-806.09,0.00014356,2]
[353382997,1739807483424,-500.0,0.00014356,2]
[353382998,1739807483434,-500.0,0.00014356,2]
[353382999,1739807483444,-946.71,0.00014356,2]
[353383000,1739807483455,-553.22,0.00014356,2]
[353383001,1739807483466,-500.0,0.00014356,2]
[353383002,1739807483476,-668.58,0.00014356,2]
[353383003,1739807483486,-500.0,0.00014356,2]
[353383004,1739807483496,-500.0,0.00014356,2]
[353383005,1739807483506,-998.85,0.00014356,2]
[353383006,1739807483516,-835.93,0.00014356,2]
[353383007,1739807483527,-500.0,0.00014356,2]
[353383008,1739807483537,-1006.39,0.00014356,2]
[353383009,1739807483547,-500.0,0.00014356,2]
[353383010,1739807483557,-500.0,0.00014356,2]
[353383011,1739807483567,-686.36,0.00014356,2]
[353383012,1739807483577,-1087.94,0.00014356,2]
[353383013,1739807483603,-820.65,0.00014356,2]
[353383014,1739807483613,-218.01226011,0.00014356,2]
[353383015,1739807483623,-868.32,0.00014356,2]
[353383016,1739807483633,-640.41,0.00014356,2]
[353383017,1739807483643,-538.04,0.00014356,2]
[353383018,1739807483653,-500.0,0.00014356,2]
[353383019,1739807483662,-964.43,0.00014356,2]
[353383020,1739807483673,-404.70519093,0.00014356,2]
[353383021,1739807483683,-500.0,0.00014356,2]
[353383022,1739807483693,-500.0,0.00014356,2]
[353383023,1739807483703,-500.0,0.00014356,2]
[353383024,1739807483713,-1160.76,0.00014356,2]
[353383025,1739807483723,-500.0,0.00014356,2]
[353383026,1739807483732,-500.0,0.00014356,2]
[353383027,1739807483742,-554.97,0.00014356,2]
[353383028,1739807483752,-500.0,0.00014356,2]
[353383029,1739807483762,-663.55,0.00014356,2]
[353383030,1739807483773,-630.26,0.00014356,2]
[353383031,1739807483783,-551.48,0.00014356,2]
[353383032,1739807483794,-769.55,0.00014356,2]
[353383033,1739807483803,-636.61,0.00014356,2]
[353383034,1739807483813,-620.74,0.00014356,2]
[353383035,1739807483823,-622.98,0.00014356,2]
[353383036,1739807483833,-923.67,0.00014356,2]
[353383037,1739807483843,-532.9,0.00014356,2]
[353383038,1739807483853,-500.0,0.00014356,2]
[353383039,1739807483862,-726.8,0.00014356,2]
[353383040,1739807483872,-540.32,0.00014356,2]
[353383041,1739807483882,-650.65,0.00014356,2]
[353383042,1739807483891,-500.0,0.00014356,2]
[353383043,1739807483901,-1118.82,0.00014356,2]
[353383044,1739807483911,-1078.45,0.00014356,2]
[353383045,1739807483922,-500.0,0.00014356,2]
[353383046,1739807483936,-685.22,0.00014356,2]
[353383047,1739807483946,-1070.7,0.00014356,2]
[353383048,1739807483956,-500.0,0.00014356,2]
[353383049,1739807483966,-500.0,0.00014356,2]
[353383050,1739807483978,-1539.55,0.00014356,2]
[353383051,1739807483988,-500.0,0.00014356,2]
[353383052,1739807483999,-747.79,0.00014356,2]
[353383053,1739807484011,-1026.38,0.00014356,2]
[353383054,1739807484022,-975.52,0.00014356,2]
[353383055,1739807484032,-678.17,0.00014356,2]
[353383056,1739807484042,-594.06,0.00014356,2]
[353383057,1739807484051,-780.0,0.00014356,2]
[353383058,1739807484061,-1153.12,0.00014356,2]
[353383059,1739807484071,-1066.97,0.00014356,2]
[353383060,1739807484080,-1019.8,0.00014356,2]
[353383061,1739807484091,-560.06,0.00014356,2]
[353383062,1739807484101,-633.55,0.00014356,2]
[353383063,1739807484116,-1048.88,0.00014356,2]
[353383064,1739807484127,-626.8,0.00014356,2]
[353383065,1739807484137,-723.6,0.00014356,2]
[353383066,1739807484146,-500.0,0.00014356,2]
[353383067,1739807484156,-551.93,0.00014356,2]
[353383068,1739807484166,-602.64259757,0.00014356,2]
[353383069,1739807484177,-756.98,0.00014356,2]
[353383070,1739807484186,-852.93,0.00014356,2]
[353383071,1739807484197,-1050.49,0.00014356,2]
[353383072,1739807484207,-500.0,0.00014356,2]
[353383073,1739807484217,-500.0,0.00014356,2]
[353383074,1739807484227,-500.0,0.00014356,2]
[353383075,1739807484237,-500.0,0.00014356,2]
[353383076,1739807484247,-1267.08,0.00014356,2]
[353383077,1739807484257,-1036.5,0.00014356,2]
[353383078,1739807484270,-1011.2,0.00014356,2]
[353383079,1739807484280,-500.0,0.00014356,2]
[353383080,1739807484290,-500.0,0.00014356,2]
[353383081,1739807484300,-601.83,0.00014356,2]
[353383082,1739807484311,-500.0,0.00014356,2]
[353383083,1739807484321,-620.39,0.00014356,2]
[353383084,1739807484331,-1580.87,0.00014356,2]
[353383085,1739807484340,-587.68,0.00014356,2]
[353383086,1739807484350,-660.55,0.00014356,2]
[353383087,1739807484360,-801.21,0.00014356,2]
[353383088,1739807484370,-2046.76,0.00014356,2]
[353383089,1739807484380,-790.46,0.00014356,2]
[353383090,1739807484390,-500.0,0.00014356,2]
[353383091,1739807484401,-681.15,0.00014356,2]
[353383092,1739807484411,-565.07,0.00014356,2]
[353383093,1739807484422,-500.0,0.00014356,2]
[353383094,1739807484432,-500.0,0.00014356,2]
[353383095,1739807484443,-500.0,0.00014356,2]
[353383096,1739807484453,-2398.73,0.00014356,2]
[353383097,1739807484464,-422.35391602,0.00014356,2]
[353383098,1739807484475,-500.0,0.00014356,2]
[353383099,1739807484485,-2019.76,0.00014356,2]
[353383100,1739807484495,-500.0,0.00014356,2]
[353383101,1739807484505,-1604.62,0.00014356,2]
[353383102,1739807484515,-534.13,0.00014356,2]
[353383103,1739807484526,-1719.53,0.00014356,2]
[353383104,1739807484536,-1063.26,0.00014356,2]
[353383105,1739807484546,-500.0,0.00014356,2]
[353383106,1739807484556,-562.89,0.00014356,2]
[353383107,1739807484567,-1290.74,0.00014356,2]
[353383108,1739807484577,-1133.18,0.00014356,2]
[353383109,1739807484586,-520.45,0.00014356,2]
[353383110,1739807484596,-500.0,0.00014356,2]
[353383111,1739807484605,-2505.64,0.00014356,2]
[353383112,1739807484615,-564.08,0.00014356,2]
[353383113,1739807484625,-500.0,0.00014356,2]
[353383114,1739807484636,-517.74,0.00014356,2]
[353383115,1739807484646,-814.48,0.00014356,2]
[353383116,1739807484657,-1057.17,0.00014356,2]
[353383117,1739807484666,-739.21,0.00014356,2]
[353383118,1739807484676,-1202.79,0.00014356,2]
[353383119,1739807484686,-621.24,0.00014356,2]
[353383120,1739807484696,-1418.14,0.00014356,2]
[353383121,1739807484705,-654.78,0.00014356,2]
[353383122,1739807484715,-4371.68,0.00014356,2]
[353383123,1739807484725,-1707.3,0.00014356,2]
[353383124,1739807484735,-572.8,0.00014356,2]
[353383125,1739807484747,-588.02,0.00014356,2]
[353383126,1739807484757,-1519.54,0.00014356,2]
[353383127,1739807484768,-797.96,0.00014356,2]
[353383128,1739807484778,-500.0,0.00014356,2]
[353383129,1739807484789,-2432.52,0.00014356,2]
[353383130,1739807484799,-500.0,0.00014356,2]
[353383131,1739807484809,-552.32,0.00014356,2]
[353383132,1739807484820,-500.0,0.00014356,2]
[353383133,1739807484830,-1511.33,0.00014356,2]
[353383134,1739807484840,-1043.05,0.00014356,2]
[353383135,1739807484850,-1468.51,0.00014356,2]
[353383136,1739807484860,-541.45,0.00014356,2]
[353383137,1739807484870,-1112.54,0.00014356,2]
[353383138,1739807484880,-500.0,0.00014356,2]
[353383139,1739807484891,-1039.9,0.00014356,2]
[353383140,1739807484901,-1196.9,0.00014356,2]
[353383141,1739807484911,-812.67,0.00014356,2]
[353383142,1739807484923,-500.0,0.00014356,2]
[353383143,1739807484936,-2132.15,0.00014356,2]
[353383144,1739807484946,-1050.4,0.00014356,2]
[353383145,1739807484957,-1483.69,0.00014356,2]
[353383146,1739807484968,-1369.18,0.00014356,2]
[353383147,1739807484979,-653.46,0.00014356,2]
[353383148,1739807484989,-500.0,0.00014356,2]
[353383149,1739807485002,-1965.34,0.00014356,2]
[353383150,1739807485013,-2581.63,0.00014356,2]
[353383151,1739807485024,-1894.74,0.00014356,2]
[353383152,1739807485034,-1801.72,0.00014356,2]
[353383153,1739807485045,-1435.92,0.00014356,2]
[353383154,1739807485055,-676.24,0.00014356,2]
[353383155,1739807485065,-828.24,0.00014356,2]
[353383156,1739807485078,-1066.36,0.00014356,2]
[353383157,1739807485089,-500.0,0.00014356,2]
[353383158,1739807485099,-500.0,0.00014356,2]
[353383159,1739807485110,-1345.58,0.00014356,2]
[353383160,1739807485121,-1657.31,0.00014356,2]
[353383161,1739807485131,-1425.4,0.00014356,2]
[353383162,1739807485141,-2229.85,0.00014356,2]
[353383163,1739807485151,-525.74,0.00014356,2]
[353383164,1739807485162,-1194.03,0.00014356,2]
[353383165,1739807485172,-1884.16,0.00014356,2]
[353383166,1739807485183,-1836.48,0.00014356,2]
[353383167,1739807485193,-1606.52,0.00014356,2]
[353383168,1739807485203,-1788.94,0.00014356,2]
[353383169,1739807485214,-1804.02,0.00014356,2]
[353383170,1739807485224,-2166.2,0.00014356,2]
[353383171,1739807485234,-2535.58,0.00014356,2]
[353383172,1739807485244,-853.36,0.00014356,2]
[353383173,1739807485254,-638.12,0.00014356,2]
[353383174,1739807485264,-1126.0,0.00014356,2]
[353383175,1739807485274,-2061.78,0.00014356,2]
[353383176,1739807485283,-2134.86,0.00014356,2]
[353383177,1739807485293,-1842.58,0.00014356,2]
[353383178,1739807485303,-1072.73,0.00014356,2]
[353383179,1739807485313,-7885.42,0.00014356,2]
[353383180,1739807485323,-500.0,0.00014356,2]
[353383181,1739807485332,-5452.19,0.00014356,2]
[353383182,1739807485342,-2172.79,0.00014356,2]
[353383183,1739807485352,-500.0,0.00014356,2]
[353383184,1739807485362,-1374.81,0.00014356,2]
[353383185,1739807485372,-2458.85,0.00014356,2]
[353383186,1739807485382,-2858.9,0.00014356,2]
[353383187,1739807485392,-882.69,0.00014356,2]
[353383188,1739807485402,-651.75,0.00014356,2]
[353383189,1739807485412,-500.0,0.00014356,2]
[353383190,1739807485422,-500.0,0.00014356,2]
[353383191,1739807485432,-2720.75,0.00014356,2]
[353383192,1739807485443,-1648.91,0.00014356,2]
[353383193,1739807485631,-1178.62,0.00014356,2]
[353383194,1739807485664,-2204.17,0.00014356,2]
[353383195,1739807485674,-1814.85,0.00014356,2]
[353383196,1739807485684,-1380.68,0.00014356,2]
[353383197,1739807485694,-500.0,0.00014356,2]
[353383198,1739807485703,-1938.39,0.00014356,2]
[353383199,1739807485712,-2244.08,0.00014356,2]
[353383200,1739807485724,-2071.51,0.00014356,2]
[353383201,1739807485733,-612.79,0.00014356,2]
[353383202,1739807485743,-500.6,0.00014356,2]
[353383203,1739807485752,-581.63,0.00014356,2]
[353383204,1739807485762,-500.0,0.00014356,2]
[353383205,1739807485772,-2400.66,0.00014356,2]
[353383206,1739807485782,-1207.45,0.00014356,2]
[353383207,1739807485791,-3070.4,0.00014356,2]
[353383208,1739807485801,-1143.41,0.00014356,2]
[353383209,1739807485810,-500.0,0.00014356,2]
[353383210,1739807485819,-1197.99,0.00014356,2]
[353383211,1739807485829,-500.0,0.00014356,2]
[353383212,1739807485839,-1667.68,0.00014356,2]
[353383213,1739807485848,-500.0,0.00014356,2]
[353383214,1739807485858,-500.0,0.00014356,2]
[353383215,1739807485867,-1541.63,0.00014356,2]
[353383216,1739807485877,-5518.95,0.00014356,2]
[353383217,1739807485887,-1955.16,0.00014356,2]
[353383218,1739807485896,-1942.56,0.00014356,2]
[353383219,1739807485906,-1149.06,0.00014356,2]
[353383220,1739807485921,-297.19547388,0.00014356,2]
[353383221,1739807485934,-1153.07,0.00014356,2]
[353383222,1739807485945,-500.0,0.00014356,2]
[353383223,1739807485955,-1541.27,0.00014356,2]
[353383224,1739807485966,-500.0,0.00014356,2]
[353383225,1739807485976,-500.0,0.00014356,2]
[353383226,1739807485986,-500.0,0.00014356,2]
[353383227,1739807485996,-1315.16,0.00014356,2]
[353383228,1739807486009,-500.0,0.00014356,2]
[353383229,1739807486019,-1801.98,0.00014356,2]
[353383230,1739807486028,-457.72832307,0.00014356,2]
[353383231,1739807486038,-2082.88,0.00014356,2]
[353383232,1739807486047,-1138.66,0.00014356,2]
[353383233,1739807486057,-1943.42,0.00014356,2]
[353383234,1739807486067,-500.0,0.00014356,2]
[353383235,1739807486077,-2980.55,0.00014356,2]
[353383236,1739807486087,-951.04,0.00014356,2]
[353383237,1739807486098,-500.0,0.00014356,2]
[353383238,1739807486107,-3797.93,0.00014356,2]
[353383239,1739807486117,-1537.9,0.00014356,2]
[353383240,1739807486127,-1352.91,0.00014356,2]
[353383241,1739807486137,-1240.17,0.00014356,2]
[353383242,1739807486147,-2181.55,0.00014356,2]
[353383243,1739807486157,-712.01,0.00014356,2]
[353383244,1739807486167,-500.0,0.00014356,2]
[353383245,1739807486177,-1396.2,0.00014356,2]
[353383246,1739807486186,-3051.02,0.00014356,2]
[353383247,1739807486196,-1258.31,0.00014356,2]
[353383248,1739807486207,-746.18,0.00014356,2]
[353383249,1739807486217,-1484.24,0.00014356,2]
[353383250,1739807486227,-1478.39,0.00014356,2]
[353383251,1739807486238,-1244.08,0.00014356,2]
[353383252,1739807486248,-664.49,0.00014356,2]
[353383253,1739807486259,-534.95,0.00014356,2]
[353383254,1739807486269,-1341.95,0.00014356,2]
[353383255,1739807486279,-1458.02,0.00014356,2]
[353383256,1739807486289,-1165.58,0.00014356,2]
[353383257,1739807486299,-1002.63,0.00014356,2]
[353383258,1739807486308,-2070.07,0.00014356,2]
[353383259,1739807486318,-1827.24,0.00014356,2]
[353383260,1739807486328,-1336.55,0.00014356,2]
[353383261,1739807486341,-2645.65,0.00014356,2]
[353383262,1739807486356,-1074.8,0.00014356,2]
[353383263,1739807486365,-893.96,0.00014356,2]
[353383264,1739807486375,-670.42,0.00014356,2]
[353383265,1739807486385,-1489.8,0.00014356,2]
[353383266,1739807486398,-595.77951316,0.00014371,2]
[353383267,1739807486408,-205.0,0.0001438,2]
[353383268,1739807486417,-209.0,0.0001438,2]
[353383269,1739807486429,-152.0,0.00014384,2]
[353383270,1739807486439,-2000.0,0.00014399,2]
[353383271,1739807486449,-55538.83936198,0.000144,2]
[353383272,1739807486459,-202.0,0.000144,2]
[353383273,1739807486468,-205.0,0.000144,2]
[353383274,1739807486478,-209.0,0.0001442,2]
[353383275,1739807486488,-205.0,0.0001442,2]
[353383276,1739807486498,-2733.35226029,0.0001442,2]
[353383277,1739807486508,-3465.6990889,0.00014428,2]
[353383278,1739807486518,-2961.8297146,0.00014428,2]
[353383279,1739807486529,-4357.6710554,0.00014428,2]
[353383280,1739807486538,-1014.0824031,0.00014428,2]
[353383281,1739807486548,-848.67,0.00014437,2]
[353383282,1739807486558,-869.210235,0.00014438,2]
[353383283,1739807486567,-805.829032,0.00014438,2]
[353383284,1739807486576,-500.0,0.00014438,2]
[353383285,1739807486586,-500.0,0.00014438,2]
[353383286,1739807486595,-500.0,0.00014438,2]
[353383287,1739807486606,-583.65,0.00014438,2]
[353383288,1739807486616,-500.0,0.00014438,2]
[353383289,1739807486625,-670.0,0.00014438,2]
[353383290,1739807486634,-500.0,0.00014438,2]
[353383291,1739807486644,-500.0,0.00014438,2]
[353383292,1739807486654,-500.0,0.00014438,2]
[353383293,1739807486663,-505.23,0.00014438,2]
[353383294,1739807486672,-582.08,0.00014438,2]
[353383295,1739807486682,-521.71,0.00014438,2]
[353383296,1739807486692,-500.0,0.00014438,2]
[353383297,1739807486701,-500.0,0.00014438,2]
[353383298,1739807486711,-500.0,0.00014438,2]
[353383299,1739807486720,-500.0,0.00014438,2]
[353383300,1739807486729,-500.0,0.00014438,2]
[353383301,1739807486739,-500.0,0.00014438,2]
[353383302,1739807486748,-500.0,0.00014438,2]
[353383303,1739807486757,-716.0,0.00014438,2]
[353383304,1739807486767,-724.35,0.00014438,2]
[353383305,1739807486776,-500.0,0.00014438,2]
[353383306,1739807486785,-505.21,0.00014438,2]
[353383307,1739807486795,-500.0,0.00014438,2]
[353383308,1739807486804,-500.0,0.00014438,2]
[353383309,1739807486813,-500.0,0.00014438,2]
[353383310,1739807486823,-886.78,0.00014438,2]
[353383311,1739807486833,-739.86,0.00014438,2]
[353383312,1739807486844,-500.0,0.00014438,2]
[353383313,1739807486860,-500.0,0.00014438,2]
[353383314,1739807486870,-545.59,0.00014438,2]
[353383315,1739807486879,-777.74,0.00014438,2]
[353383316,1739807486889,-500.0,0.00014438,2]
[353383317,1739807486899,-916.92,0.00014438,2]
[353383318,1739807486909,-570.5,0.00014438,2]
[353383319,1739807486918,-1159.55,0.00014438,2]
[353383320,1739807486930,-500.0,0.00014438,2]
[353383321,1739807486941,-601.32,0.00014438,2]
[353383322,1739807486951,-587.92,0.00014438,2]
[353383323,1739807486961,-534.04,0.00014438,2]
[353383324,1739807486971,-599.83,0.00014438,2]
[353383325,1739807486981,-661.0,0.00014438,2]
[353383326,1739807486991,-533.51,0.00014438,2]
[353383327,1739807487001,-811.77,0.00014438,2]
[353383328,1739807487011,-576.06,0.00014438,2]
[353383329,1739807487020,-593.38,0.00014438,2]
[353383330,1739807487030,-630.76,0.00014438,2]
[353383331,1739807487039,-714.58,0.00014438,2]
[353383332,1739807487048,-942.74,0.00014438,2]
[353383333,1739807487058,-433.58,0.00014438,2]
[353383334,1739807487068,-932.03,0.00014438,2]
[353383335,1739807487077,-851.93,0.00014438,2]
[353383336,1739807487087,-697.57,0.00014438,2]
[353383337,1739807487101,-500.0,0.00014438,2]
[353383338,1739807487111,-500.0,0.00014438,2]
[353383339,1739807487120,-500.0,0.00014438,2]
[353383340,1739807487130,-558.17,0.00014438,2]
[353383341,1739807487139,-901.05,0.00014438,2]
[353383342,1739807487149,-501.89,0.00014438,2]
[353383343,1739807487159,-958.61,0.00014438,2]
[353383344,1739807487168,-317.87721572,0.00014438,2]
[353383345,1739807487178,-651.14,0.00014438,2]
[353383346,1739807487188,-715.24,0.00014438,2]
[353383347,1739807487197,-578.19,0.00014438,2]
[353383348,1739807487207,-533.54,0.00014438,2]
[353383349,1739807487217,-500.0,0.00014438,2]
[353383350,1739807487227,-500.0,0.00014438,2]
[353383351,1739807487237,-500.0,0.00014438,2]
[353383352,1739807487247,-649.57,0.00014438,2]
[353383353,1739807487256,-500.0,0.00014438,2]
[353383354,1739807487267,-658.48,0.00014438,2]
[353383355,1739807487276,-876.0,0.00014438,2]
[353383356,1739807487287,-350.96872353,0.00014438,2]
[353383357,1739807487297,-500.0,0.00014438,2]
[353383358,1739807487307,-500.0,0.00014438,2]
[353383359,1739807487317,-1088.47,0.00014438,2]
[353383360,1739807487327,-720.55,0.00014438,2]
[353383361,1739807487337,-806.09,0.00014438,2]
[353383362,1739807487349,-500.0,0.00014438,2]
[353383363,1739807487359,-500.0,0.00014438,2]
[353383364,1739807487369,-946.71,0.00014438,2]
[353383365,1739807487378,-553.22,0.00014438,2]
[353383366,1739807487388,-500.0,0.00014438,2]
[353383367,1739807487397,-668.58,0.00014438,2]
[353383368,1739807487408,-500.0,0.00014438,2]
[353383369,1739807487417,-500.0,0.00014438,2]
[353383370,1739807487427,-998.85,0.00014438,2]
[353383371,1739807487436,-835.93,0.00014438,2]
[353383372,1739807487446,-500.0,0.00014438,2]
[353383373,1739807487456,-1006.39,0.00014438,2]
[353383374,1739807487466,-500.0,0.00014438,2]
[353383375,1739807487476,-500.0,0.00014438,2]
[353383376,1739807487485,-686.36,0.00014438,2]
[353383377,1739807487495,-1087.94,0.00014438,2]
[353383378,1739807487504,-820.65,0.00014438,2]
[353383379,1739807487513,-868.32,0.00014438,2]
[353383380,1739807487523,-640.41,0.00014438,2]
[353383381,1739807487532,-538.04,0.00014438,2]
[353383382,1739807487542,-500.0,0.00014438,2]
[353383383,1739807487551,-964.43,0.00014438,2]
[353383384,1739807487561,-500.0,0.00014438,2]
[353383385,1739807487570,-500.0,0.00014438,2]
[353383386,1739807487579,-500.0,0.00014438,2]
[353383387,1739807487589,-1160.76,0.00014438,2]
[353383388,1739807487600,-500.0,0.00014438,2]
[353383389,1739807487609,-500.0,0.00014438,2]
[353383390,1739807487619,-554.97,0.00014438,2]
[353383391,1739807487628,-500.0,0.00014438,2]
[353383392,1739807487638,-663.55,0.00014438,2]
[353383393,1739807487647,-630.26,0.00014438,2]
[353383394,1739807487656,-551.48,0.00014438,2]
[353383395,1739807487665,-769.55,0.00014438,2]
[353383396,1739807487675,-636.61,0.00014438,2]
[353383397,1739807487684,-620.74,0.00014438,2]
[353383398,1739807487694,-622.98,0.00014438,2]
[353383399,1739807487703,-923.67,0.00014438,2]
[353383400,1739807487713,-532.9,0.00014438,2]
[353383401,1739807487722,-500.0,0.00014438,2]
[353383402,1739807487731,-726.8,0.00014438,2]
[353383403,1739807487741,-540.32,0.00014438,2]